bitfinex/quotes_SOLUSD_20240622
["timestamp","ask_amount","ask_price","bid_price","bid_amount"]
[1719022565501,20.0,134.48,134.44,15.8879]
[1719022566029,20.0,134.48,134.43,23.764]
[1719022566211,20.0,134.48,134.44,8.45]
[1719022566523,27.4362,134.48,134.44,8.45]
[1719022566712,27.4362,134.48,134.44,15.8881]
[1719022567616,20.0,134.48,134.44,15.8881]
[1719022568422,27.436,134.48,134.44,15.8881]
[1719022568717,27.436,134.48,134.4,52.4011]
[1719022568718,7.4371,134.46,134.4,34.2677]
[1719022568922,15.8868,134.47,134.42,15.8893]
[1719022569220,7.4374,134.46,134.41,7.4395]
[1719022569425,7.4374,134.46,134.42,8.45]
[1719022570018,7.4374,134.46,134.42,15.8892]
[1719022572230,7.4374,134.46,134.42,7.4392]
[1719022572811,7.4374,134.46,134.42,15.8892]
[1719022573033,15.8868,134.47,134.42,15.8892]
[1719022573231,20.0,134.46,134.42,15.8892]
[1719022573421,27.4373,134.46,134.42,15.8892]
[1719022573932,20.0,134.46,134.42,15.8892]
[1719022574828,20.0,134.46,134.4,15.6666]
[1719022575015,15.888,134.45,134.4,15.8901]
[1719022575215,35.8872,134.46,134.41,15.8897]
[1719022575416,28.45,134.46,134.43,7.4387]
[1719022575621,27.4374,134.46,134.42,15.8893]
[1719022575831,35.8874,134.46,134.42,7.4393]
[1719022577141,28.45,134.46,134.37,34.2719]
[1719022577318,7.4388,134.44,134.39,7.4407]
[1719022577525,27.439,134.43,134.39,8.45]
[1719022577735,20.0,134.43,134.39,8.45]
[1719022577910,20.0,134.43,134.4,7.4404]
[1719022578115,20.0,134.44,134.41,7.4398]
[1719022579529,20.0,134.44,134.4,7.4403]
[1719022580034,20.0,134.44,134.4,15.8903]
[1719022583746,20.0,134.44,134.41,8.45]
[1719022584650,20.0,134.44,134.4,15.8903]
[1719022586545,20.0,134.44,134.41,8.45]
[1719022586725,27.4382,134.44,134.4,7.4403]
[1719022586921,7.4389,134.43,134.37,15.6666]
[1719022587132,27.4385,134.44,134.4,8.45]
[1719022588439,7.4389,134.43,134.38,7.4413]
[1719022588833,7.4389,134.43,134.4,8.45]
[1719022589427,27.4385,134.44,134.4,8.45]
[1719022589840,27.4385,134.44,134.39,7.4409]
[1719022590050,27.4385,134.44,134.4,8.45]
[1719022590846,27.4385,134.44,134.39,7.4409]
[1719022591061,27.4385,134.44,134.4,8.45]
[1719022593044,27.4385,134.44,134.4,15.8903]
[1719022593222,15.27,134.43,134.34,18.6091]
[1719022593427,8.45,134.39,134.33,16.5325]
[1719022593629,8.45,134.39,134.32,25.2266]
[1719022593630,8.45,134.39,134.35,7.4431]
[1719022593832,20.0,134.38,134.35,7.4431]
[1719022594045,20.0,134.38,134.35,15.8931]
[1719022594235,16.2306,134.4,134.35,8.45]
[1719022594236,0.34,134.4,134.35,8.45]
[1719022594436,20.0,134.4,134.34,18.6092]
[1719022594648,20.0,134.4,134.38,7.4414]
[1719022595043,20.0,134.4,134.37,8.45]
[1719022595044,20.0,134.4,134.37,15.8918]
[1719022595236,20.0,134.4,134.36,7.4424]
[1719022595431,0.17,134.39,134.36,7.4424]
[1719022595637,0.34,134.39,134.36,15.8924]
[1719022596334,20.0,134.4,134.36,15.8924]
[1719022596534,20.0,134.4,134.37,15.8921]
[1719022597735,14.1873,134.41,134.38,7.4415]
[1719022597736,6.4073,134.41,134.38,7.4415]
[1719022598053,15.1,134.43,134.4,15.8901]
[1719022598741,13.8452,134.45,134.4,15.8901]
[1719022598943,27.4384,134.44,134.4,15.8901]
[1719022599139,7.439,134.43,134.4,8.45]
[1719022599934,7.4394,134.42,134.38,7.4413]
[1719022600132,16.059,134.43,134.38,15.8912]
[1719022600339,20.0,134.42,134.39,15.8907]
[1719022600549,20.0,134.42,134.39,8.45]
[1719022600950,20.0,134.42,134.39,15.891]
[1719022601149,20.17,134.43,134.39,15.891]
[1719022601662,27.6088,134.43,134.39,15.891]
[1719022601855,27.6088,134.43,134.39,8.45]
[1719022603048,20.17,134.43,134.4,7.4403]
[1719022603661,27.6088,134.43,134.39,15.8908]
[1719022603864,27.6088,134.43,134.39,7.4408]
[1719022605864,20.17,134.43,134.39,7.4408]
[1719022606567,20.17,134.43,134.4,7.4403]
[1719022606864,20.17,134.43,134.38,8.45]
[1719022607159,20.17,134.44,134.4,7.4401]
[1719022607366,20.17,134.44,134.41,7.4397]
[1719022607545,20.17,134.44,134.4,7.4402]
[1719022608466,27.6083,134.44,134.4,7.4402]
[1719022608868,20.17,134.44,134.41,7.4398]
[1719022609378,20.17,134.44,134.4,15.8902]
[1719022609676,27.6084,134.44,134.4,15.8902]
[1719022609854,27.6084,134.44,134.4,7.4402]
[1719022610182,27.6084,134.44,134.39,15.8907]
[1719022611078,7.4389,134.43,134.39,7.4407]
[1719022611255,7.4389,134.43,134.37,18.6051]
[1719022611256,8.45,134.42,134.37,7.4418]
[1719022611463,20.17,134.41,134.37,7.4418]
[1719022613368,20.0,134.41,134.37,18.605]
[1719022613561,8.45,134.43,134.38,8.45]
[1719022613758,20.0,134.42,134.38,8.45]
[1719022613961,19.5,134.42,134.38,8.45]
[1719022614567,19.5,134.42,134.39,7.4408]
[1719022614777,19.5,134.42,134.38,15.8914]
[1719022615068,7.4404,134.41,134.36,7.4425]
[1719022615264,7.7802,134.41,134.36,15.8925]
[1719022615649,16.2302,134.41,134.36,15.8925]
[1719022615883,7.7802,134.41,134.37,7.442]
[1719022616192,0.34,134.41,134.37,7.442]
[1719022616387,20.34,134.41,134.37,7.442]
[1719022616994,27.78,134.41,134.37,7.442]
[1719022618189,36.23,134.41,134.37,7.442]
[1719022619094,28.79,134.41,134.37,7.442]
[1719022620193,28.79,134.41,134.38,7.4414]
[1719022620365,20.0,134.41,134.39,7.4409]
[1719022620566,20.0,134.41,134.38,7.4413]
[1719022621657,28.45,134.41,134.37,7.4419]
[1719022621861,20.0,134.41,134.38,7.4415]
[1719022622796,20.0,134.41,134.37,15.8918]
[1719022624271,27.4399,134.41,134.37,15.8918]
[1719022625203,20.0,134.41,134.35,35.1404]
[1719022625409,14.16541264,134.45,134.4,8.45]
[1719022625410,27.4384,134.44,134.4,8.45]
[1719022625791,10.0,134.52,134.36,18.6056]
[1719022625792,6.2437,134.48,134.37,37.5379]
[1719022626000,15.2658,134.5,134.41,18.5986]
[1719022626001,23.7158,134.5,134.41,18.5986]
[1719022626206,7.4364,134.48,134.44,8.45]
[1719022626368,15.8863,134.48,134.4,33.8]
[1719022626709,15.8856,134.49,134.44,15.8879]
[1719022626878,15.8856,134.49,134.45,7.4375]
[1719022627082,15.8856,134.49,134.44,7.438]
[1719022627273,7.4361,134.48,134.44,15.888]
[1719022628378,7.4361,134.48,134.44,7.438]
[1719022628603,7.4361,134.48,134.44,15.888]
[1719022629305,22.7008,134.5,134.45,15.8875]
[1719022629607,20.0,134.49,134.47,15.8864]
[1719022629795,0.865396,134.51,134.47,15.8864]
[1719022630102,20.865396,134.51,134.47,8.45]
[1719022630705,20.865396,134.51,134.47,7.4363]
[1719022630873,20.865396,134.51,134.47,15.8863]
[1719022632415,20.865396,134.51,134.48,7.436]
[1719022632791,20.865396,134.51,134.48,15.886]
[1719022633006,0.865396,134.51,134.48,15.886]
[1719022634301,0.865396,134.51,134.47,7.4363]
[1719022634494,16.750096,134.51,134.46,15.8869]
[1719022635208,9.315396,134.51,134.45,7.4374]
[1719022635400,36.2249,134.5,134.45,8.45]
[1719022635613,28.79,134.5,134.46,7.437]
[1719022636511,20.34,134.5,134.46,7.437]
[1719022636721,20.34,134.5,134.46,15.887]
[1719022636925,20.34,134.5,134.46,7.437]
[1719022637104,27.775,134.5,134.46,15.887]
[1719022637522,20.34,134.5,134.46,15.887]
[1719022638819,27.775,134.5,134.46,15.887]
[1719022640642,20.34,134.5,134.46,15.887]
[1719022641523,15.8863,134.48,134.41,18.5994]
[1719022641739,8.45,134.48,134.43,8.45]
[1719022641918,8.45,134.48,134.44,7.4379]
[1719022642229,8.45,134.48,134.45,7.4377]
[1719022643102,15.8858,134.49,134.45,7.4377]
[1719022643301,20.34,134.48,134.45,7.4377]
[1719022643824,20.34,134.48,134.45,15.8877]
[1719022644194,20.0,134.48,134.46,15.8869]
[1719022644391,20.0,134.5,134.47,7.4365]
[1719022644596,20.0,134.5,134.48,15.8859]
[1719022645201,20.865396,134.51,134.48,15.8859]
[1719022646123,0.17,134.5,134.45,7.4374]
[1719022646307,7.4359,134.49,134.45,8.45]
[1719022646628,7.7751,134.5,134.45,15.8874]
[1719022647947,7.4355,134.49,134.45,8.45]
[1719022648466,7.4355,134.49,134.45,15.8876]
[1719022650642,0.17,134.48,134.43,15.9356]
[1719022650845,7.4369,134.47,134.43,31.8241]
[1719022651050,27.7762,134.48,134.44,15.8881]
[1719022651282,20.17,134.48,134.44,15.8881]
[1719022651467,20.0,134.48,134.44,15.8881]
[1719022651777,27.4362,134.48,134.44,7.4381]
[1719022651936,27.4362,134.48,134.44,15.8881]
[1719022653661,27.4362,134.48,134.43,23.3741]
[1719022653965,7.7767,134.47,134.43,7.4385]
[1719022654340,7.7767,134.47,134.43,15.8885]
[1719022654567,0.34,134.47,134.43,15.8885]
[1719022654873,0.34,134.47,134.44,7.4382]
[1719022655254,0.34,134.47,134.44,15.8882]
[1719022657340,8.63694939,134.51,134.46,7.4366]
[1719022657538,0.17,134.5,134.47,8.45]
[1719022658015,0.17,134.5,134.47,15.8863]
[1719022658336,0.17,134.5,134.47,8.45]
[1719022658761,0.34,134.5,134.47,8.45]
[1719022659483,20.865396,134.51,134.47,15.8865]
[1719022661465,20.865396,134.51,134.48,7.4359]
[1719022661673,20.865396,134.51,134.49,7.4351]
[1719022661874,0.865396,134.51,134.49,7.4351]
[1719022662067,0.865396,134.51,134.48,15.8857]
[1719022663473,0.865396,134.51,134.48,7.4357]
[1719022663659,8.299796,134.51,134.47,8.45]
[1719022664166,8.299796,134.51,134.47,15.8864]
[1719022664674,8.299796,134.51,134.47,7.4364]
[1719022665493,0.865396,134.51,134.47,7.4364]
[1719022666272,0.865396,134.51,134.48,7.4359]
[1719022667479,0.865396,134.51,134.48,15.8859]
[1719022669259,0.865396,134.51,134.49,7.4354]
[1719022669669,0.865396,134.51,134.49,15.8854]
[1719022670972,0.865396,134.51,134.49,8.45]
[1719022671372,0.865396,134.51,134.5,7.4349]
[1719022671559,0.865396,134.51,134.5,15.8849]
[1719022672381,0.865396,134.51,134.5,38.8091]
[1719022673278,0.865396,134.51,134.5,61.1891]
[1719022673479,7.4297,134.6,134.55,7.4319]
[1719022673689,7.4297,134.6,134.56,8.45]
[1719022673866,20.0,134.59,134.56,8.45]
[1719022674180,27.43,134.59,134.52,18.5834]
[1719022674372,7.4309,134.58,134.54,8.45]
[1719022674773,27.4301,134.59,134.54,15.8827]
[1719022675073,24.9301,134.59,134.54,15.8827]
[1719022675465,24.9301,134.59,134.55,8.45]
[1719022675667,7.4305,134.58,134.55,8.45]
[1719022676274,24.9301,134.59,134.55,8.45]
[1719022677361,7.4305,134.58,134.54,7.4327]
[1719022677979,17.5,134.59,134.55,15.8818]
[1719022678478,24.93,134.59,134.55,15.8818]
[1719022678886,24.93,134.59,134.55,8.45]
[1719022679761,24.93,134.59,134.54,7.4324]
[1719022679967,24.93,134.59,134.55,8.45]
[1719022680167,24.93,134.59,134.55,15.882]
[1719022680377,25.95,134.59,134.5,41.5114]
[1719022680686,17.5,134.59,134.55,15.8818]
[1719022680895,24.93,134.59,134.55,8.45]
[1719022681069,17.5,134.59,134.55,15.8821]
[1719022682172,24.93,134.59,134.55,15.8821]
[1719022683589,24.93,134.59,134.55,8.45]
[1719022684682,17.5,134.59,134.55,15.8817]
[1719022684869,17.5,134.59,134.56,8.45]
[1719022685191,17.5,134.59,134.56,15.8813]
[1719022685697,17.5,134.59,134.55,15.8819]
[1719022686483,24.93,134.59,134.55,15.8819]
[1719022687892,7.43,134.59,134.55,15.8819]
[1719022688069,16.0495,134.6,134.55,15.8819]
[1719022688263,0.17,134.6,134.55,8.45]
[1719022688471,20.34,134.6,134.56,7.4313]
[1719022688793,20.34,134.6,134.56,15.8813]
[1719022689207,7.76320141,134.63,134.6,7.429]
[1719022689382,8.45,134.64,134.6,7.429]
[1719022689708,31.078796,134.65,134.6,8.45]
[1719022689882,39.528796,134.65,134.6,8.45]
[1719022690197,23.652096,134.65,134.6,7.4291]
[1719022690373,23.652096,134.65,134.6,8.45]
[1719022690576,23.652096,134.65,134.61,15.8788]
[1719022690771,20.0,134.64,134.61,15.8788]
[1719022691368,20.865396,134.65,134.61,15.8788]
[1719022691795,20.865396,134.65,134.6,7.4292]
[1719022691993,20.865396,134.65,134.55,45.1758]
[1719022691994,15.8773,134.64,134.59,15.8797]
[1719022692694,15.8773,134.64,134.6,7.4293]
[1719022692893,15.8773,134.64,134.59,8.45]
[1719022692894,24.7952,134.63,134.58,7.43]
[1719022693192,8.45,134.61,134.56,8.45]
[1719022693372,15.879,134.61,134.56,8.45]
[1719022693984,8.79,134.62,134.57,8.45]
[1719022694168,20.0,134.61,134.57,15.8808]
[1719022694372,27.4288,134.61,134.57,15.8808]
[1719022694673,20.0,134.61,134.57,7.4308]
[1719022694889,20.0,134.61,134.57,15.8808]
[1719022695399,20.0,134.61,134.57,7.4308]
[1719022697002,20.0,134.61,134.52,16.1617]
[1719022697298,0.34,134.6,134.52,16.1617]
[1719022697480,7.4308,134.58,134.53,7.433]
[1719022697675,7.4319,134.56,134.51,7.4338]
[1719022697889,7.4319,134.56,134.52,7.4337]
[1719022698093,7.6012,134.57,134.52,7.4337]
[1719022698404,20.0,134.56,134.52,7.4337]
[1719022699705,20.0,134.56,134.53,7.4332]
[1719022700591,20.17,134.57,134.53,7.4332]
[1719022700990,27.6011,134.57,134.53,7.4332]
[1719022701677,20.17,134.57,134.53,7.4332]
[1719022702080,20.0,134.57,134.48,38.5017]
[1719022702285,23.7742,134.61,134.56,7.4313]
[1719022702501,20.0,134.6,134.56,7.4313]
[1719022702703,20.0,134.6,134.57,7.4308]
[1719022703289,20.0,134.6,134.54,18.5814]
[1719022703290,20.0,134.6,134.56,7.4313]
[1719022703491,27.4297,134.6,134.52,18.5842]
[1719022703899,20.0,134.6,134.56,7.4313]
[1719022706996,20.0,134.6,134.57,7.4309]
[1719022707783,20.0,134.6,134.56,7.4313]
[1719022709990,20.0,134.6,134.57,7.4309]
[1719022711089,20.0,134.6,134.56,7.4313]
[1719022712201,7.6002,134.59,134.55,7.432]
[1719022713901,7.4316,134.56,134.51,7.4341]
[1719022714103,20.17,134.55,134.51,7.4341]
[1719022714410,20.34,134.55,134.52,7.4336]
[1719022714782,0.34,134.55,134.52,7.4336]
[1719022716209,0.34,134.55,134.51,7.4341]
[1719022716802,27.4317,134.56,134.49,18.5876]
[1719022716803,20.0,134.56,134.49,18.5876]
[1719022717009,20.0,134.56,134.5,18.586]
[1719022717204,6.4661,134.58,134.5,18.586]
[1719022717205,20.0,134.57,134.5,18.586]
[1719022717384,0.17,134.56,134.52,7.4335]
[1719022718202,0.34,134.56,134.52,7.4335]
[1719022719509,7.7717,134.56,134.51,7.4342]
[1719022720004,7.4322,134.55,134.51,7.4342]
[1719022720708,0.34,134.56,134.51,7.4342]
[1719022720709,7.7719,134.56,134.51,7.4342]
[1719022721010,27.4321,134.55,134.5,7.4347]
[1719022721210,0.17,134.54,134.5,7.4347]
[1719022722516,0.17,134.54,134.51,7.4343]
[1719022725498,20.0,134.55,134.52,7.4335]
[1719022725806,0.34,134.56,134.53,7.433]
[1719022726006,20.0,134.57,134.54,7.4326]
[1719022726189,6.4661,134.58,134.55,7.4321]
[1719022726590,21.15343635,134.6,134.55,7.4321]
[1719022726904,20.0,134.59,134.55,7.4321]
[1719022727207,21.15343635,134.6,134.55,7.4321]
[1719022727403,13.72383635,134.6,134.48,38.5017]
[1719022727584,21.15363635,134.6,134.55,7.432]
[1719022728019,15.19621644,134.6,134.55,7.432]
[1719022728395,15.19621644,134.6,134.53,18.5827]
[1719022728712,267.8274,134.64,134.59,7.4294]
[1719022729013,7.4283,134.62,134.57,7.4307]
[1719022729997,7.768,134.63,134.58,7.4303]
[1719022730491,20.0,134.62,134.54,18.5805]
[1719022730706,7.769,134.61,134.56,7.4316]
[1719022730891,20.17,134.6,134.56,7.4316]
[1719022731092,20.0,134.6,134.57,7.4305]
[1719022731518,20.17,134.61,134.57,7.4305]
[1719022732211,20.17,134.61,134.56,7.4313]
[1719022732417,20.17,134.6,134.56,7.4313]
[1719022732593,0.17,134.6,134.56,7.4313]
[1719022733011,7.5994,134.6,134.55,7.4319]
[1719022733194,7.5994,134.6,134.56,7.4315]
[1719022734636,0.17,134.59,134.56,7.4315]
[1719022736828,7.6,134.59,134.55,7.432]
[1719022737021,7.4305,134.58,134.52,35.0263]
[1719022737328,0.17,134.59,134.54,7.4322]
[1719022737329,7.6,134.59,134.54,7.4322]
[1719022737518,0.17,134.59,134.55,7.432]
[1719022737729,20.17,134.59,134.55,7.432]
[1719022738231,27.6001,134.59,134.54,7.4326]
[1719022738531,0.17,134.58,134.54,7.4326]
[1719022738837,0.17,134.58,134.55,7.432]
[1719022740331,20.17,134.59,134.56,7.4315]
[1719022741236,20.17,134.59,134.55,7.4319]
[1719022741922,20.17,134.59,134.56,7.4314]
[1719022742621,20.0,134.59,134.57,7.4307]
[1719022742825,20.0,134.61,134.57,7.4307]
[1719022743128,7.4294,134.6,134.52,35.0261]
[1719022743316,7.4294,134.6,134.55,7.4317]
[1719022743515,7.4294,134.6,134.56,7.4315]
[1719022743713,15.9406,134.6,134.53,18.5822]
[1719022744028,15.9406,134.6,134.5,37.1736]
[1719022744029,27.4303,134.59,134.54,7.4326]
[1719022744233,20.17,134.59,134.55,7.432]
[1719022744711,27.5999,134.59,134.55,7.432]
[1719022745114,20.0,134.59,134.54,18.5818]
[1719022745326,16.1106,134.6,134.54,18.5818]
[1719022745529,16.1106,134.6,134.56,7.4313]
[1719022746028,23.5401,134.6,134.56,7.4313]
[1719022746229,23.5401,134.6,134.55,7.4319]
[1719022746927,16.1106,134.6,134.56,7.4315]
[1719022747125,23.3701,134.6,134.56,7.4315]
[1719022747709,21.21314837,134.62,134.57,7.4306]
[1719022747917,20.0,134.61,134.57,7.4307]
[1719022748210,7.4297,134.6,134.56,7.4315]
[1719022748410,7.4296,134.6,134.55,7.432]
[1719022748610,27.4289,134.61,134.53,18.582]
[1719022749614,27.4289,134.61,134.56,7.4312]
[1719022750931,20.0,134.61,134.55,7.432]
[1719022751133,15.9406,134.59,134.48,16.3395]
[1719022751339,20.34,134.58,134.51,18.5858]
[1719022751641,27.7708,134.58,134.53,7.4329]
[1719022753723,7.4312,134.57,134.53,7.4329]
[1719022754038,7.4312,134.57,134.52,7.4336]
[1719022754620,7.4312,134.57,134.49,18.5883]
[1719022754621,0.17,134.56,134.49,18.5883]
[1719022754837,20.34,134.58,134.49,18.5883]
[1719022754838,6.1916,134.57,134.49,18.5883]
[1719022755039,27.7719,134.56,134.51,7.434]
[1719022755417,7.4322,134.55,134.5,7.4346]
[1719022755619,7.4328,134.54,134.5,7.4346]
[1719022755839,20.34,134.56,134.51,7.4343]
[1719022756042,27.7718,134.56,134.51,7.4343]
[1719022756232,7.4326,134.55,134.48,16.3395]
[1719022756429,7.4325,134.55,134.5,7.4346]
[1719022756730,27.7718,134.56,134.48,34.9284]
[1719022756936,27.7718,134.56,134.51,7.4342]
[1719022757443,0.34,134.56,134.5,18.5865]
[1719022757625,13.6229,134.57,134.52,7.4335]
[1719022757830,13.6229,134.57,134.5,18.5865]
[1719022758336,13.6229,134.57,134.52,7.4335]
[1719022759643,13.6229,134.57,134.51,7.4341]
[1719022759644,7.6018,134.56,134.51,7.4341]
[1719022759830,0.17,134.55,134.51,7.4341]
[1719022760233,0.17,134.56,134.52,7.4337]
[1719022760420,20.17,134.56,134.53,7.4331]
[1719022760621,20.0,134.56,134.53,7.4331]
[1719022760836,6.1916,134.57,134.54,7.4327]
[1719022763425,6.1916,134.57,134.53,7.4331]
[1719022767847,6.1916,134.57,134.54,7.4326]
[1719022768063,15.9406,134.59,134.48,38.6795]
[1719022768350,15.9406,134.59,134.56,7.4313]
[1719022768546,15.9406,134.59,134.55,7.4319]
[1719022769430,7.4306,134.58,134.5,18.5864]
[1719022769730,23.7107,134.59,134.54,7.4322]
[1719022769954,23.5407,134.59,134.51,18.5849]
[1719022770124,0.34,134.58,134.54,7.4323]
[1719022770331,23.3707,134.59,134.51,18.5849]
[1719022770622,23.3707,134.59,134.54,7.4324]
[1719022771066,7.4314,134.57,134.52,7.4335]
[1719022771559,7.7708,134.58,134.53,7.433]
[1719022771744,20.0,134.57,134.53,7.433]
[1719022772959,15.9406,134.59,134.55,7.4318]
[1719022773145,20.0,134.58,134.55,7.4318]
[1719022774271,27.4306,134.58,134.53,7.4332]
[1719022774487,0.34,134.57,134.53,7.4332]
[1719022774681,27.4306,134.58,134.54,7.4325]
[1719022775478,20.0,134.58,134.54,7.4325]
[1719022775667,20.0,134.58,134.55,7.432]
[1719022776884,15.9406,134.59,134.55,7.432]
[1719022777664,23.3706,134.59,134.55,7.432]
[1719022780163,15.9406,134.59,134.55,7.432]
[1719022782155,23.3707,134.59,134.55,7.432]
[1719022782566,23.3707,134.59,134.54,7.4324]
[1719022783585,23.3707,134.59,134.55,7.4321]
[1719022784309,7.4305,134.58,134.54,7.4327]
[1719022785490,23.3707,134.59,134.54,7.4327]
[1719022786670,23.3707,134.59,134.55,7.432]
[1719022789292,15.9406,134.59,134.51,18.5848]
[1719022789588,0.34,134.58,134.53,7.433]
[1719022790085,0.34,134.58,134.54,7.4326]
[1719022790086,7.7708,134.58,134.54,7.4326]
[1719022790394,0.34,134.58,134.53,7.433]
[1719022790563,27.7708,134.58,134.53,7.433]
[1719022791586,27.7708,134.58,134.54,7.4327]
[1719022801868,20.0,134.58,134.56,7.4311]
[1719022802190,15.9406,134.59,134.56,7.4311]
[1719022804177,22.9882,134.62,134.57,7.4309]
[1719022804379,15.5597,134.62,134.52,74.7215]
[1719022804584,15.5597,134.62,134.53,0.34]
[1719022805882,15.5597,134.62,134.59,7.4298]
[1719022807198,15.5597,134.62,134.58,7.4302]
[1719022808000,15.5597,134.62,134.59,7.4298]
[1719022808198,27.18885048,134.65,134.58,18.576]
[1719022808199,24.18185048,134.65,134.58,18.576]
[1719022808370,20.0,134.64,134.62,7.4281]
[1719022808576,20.0,134.64,134.61,7.4285]
[1719022809381,20.0,134.64,134.62,8.36]
[1719022809873,20.0,134.64,134.61,15.7885]
[1719022810698,20.0,134.64,134.62,15.7881]
[1719022810880,0.865396,134.65,134.62,8.36]
[1719022811197,8.291996,134.65,134.62,8.36]
[1719022811399,8.291996,134.65,134.61,7.4286]
[1719022811695,8.291996,134.65,134.57,15.2131]
[1719022811696,7.4272,134.64,134.57,15.2131]
[1719022811882,7.4274,134.64,134.6,8.36]
[1719022812197,7.4295,134.6,134.55,7.4318]
[1719022812500,7.4295,134.6,134.56,8.36]
[1719022812798,7.4295,134.6,134.56,7.4315]
[1719022813188,7.4295,134.6,134.56,15.7915]
[1719022813383,7.4295,134.6,134.55,7.4319]
[1719022813577,15.9591,134.61,134.56,15.7915]
[1719022813783,0.17,134.6,134.56,15.7915]
[1719022815181,15.7891,134.61,134.56,15.7915]
[1719022816196,7.4301,134.59,134.51,18.5856]
[1719022816401,13.9444,134.61,134.56,8.36]
[1719022816600,13.9444,134.61,134.57,8.36]
[1719022816601,6.5153,134.61,134.57,8.36]
[1719022816801,6.5153,134.61,134.57,15.791]
[1719022819413,13.9441,134.61,134.56,7.4315]
[1719022819611,8.7,134.6,134.56,7.4315]
[1719022820403,16.1297,134.6,134.55,7.4319]
[1719022820605,16.1297,134.6,134.55,15.7919]
[1719022821017,16.1297,134.6,134.56,7.4315]
[1719022821416,0.34,134.6,134.57,7.431]
[1719022821599,28.7,134.6,134.56,7.4314]
[1719022825611,20.34,134.6,134.56,15.7914]
[1719022826410,20.0,134.6,134.58,7.4303]
[1719022826591,20.0,134.6,134.57,15.7909]
[1719022826792,20.0,134.61,134.58,7.4304]
[1719022827020,27.4289,134.61,134.57,15.7909]
[1719022828706,20.0,134.61,134.58,7.4305]
[1719022828912,7.7683,134.62,134.58,7.4305]
[1719022829711,7.7683,134.62,134.58,15.7905]
[1719022833618,7.4297,134.6,134.56,7.4313]
[1719022833822,7.4297,134.6,134.56,8.36]
[1719022834227,7.4297,134.6,134.55,7.4319]
[1719022834396,7.4297,134.6,134.56,8.36]
[1719022835133,7.4297,134.6,134.56,15.7915]
[1719022838802,7.4297,134.6,134.56,7.4315]
[1719022839030,28.53,134.59,134.54,15.7922]
[1719022839347,8.36,134.58,134.54,7.4322]
[1719022839533,20.17,134.59,134.54,8.36]
[1719022839708,0.17,134.59,134.55,8.36]
[1719022839907,20.17,134.59,134.55,8.36]
[1719022840408,20.17,134.59,134.55,15.7919]
[1719022841537,35.9601,134.59,134.54,15.7924]
[1719022843333,35.9601,134.59,134.54,7.4324]
[1719022843513,35.9601,134.59,134.54,15.7924]
[1719022844218,35.9601,134.59,134.55,7.4321]
[1719022845716,20.17,134.59,134.55,15.7921]